bitfinex-derivatives/quotes_BTCF0:USTF0_20240913
["timestamp","ask_amount","ask_price","bid_price","bid_amount"]
[1726241679605,0.001,59440.0,59431.0,0.3608]
[1726241679906,0.36652185,59446.0,59428.0,0.084122]
[1726241679907,0.45,59441.0,59428.0,0.084122]
[1726241680107,0.45,59441.0,59424.0,0.3608]
[1726241680314,0.45,59441.0,59425.0,0.084126]
[1726241680315,0.084118,59432.0,59425.0,0.084126]
[1726241680505,0.084118,59432.0,59427.0,0.084123]
[1726241680706,0.08411,59437.0,59429.0,0.08412]
[1726241680901,0.36652185,59446.0,59434.0,0.3608]
[1726241681517,0.084108,59438.0,59434.0,0.3608]
[1726241682104,0.084112,59435.0,59429.0,0.08412]
[1726241682318,0.45,59441.0,59434.0,0.007]
[1726241682613,0.084112,59435.0,59434.0,0.007]
[1726241683909,0.001,59438.0,59434.0,0.463913]
[1726241684104,0.001,59438.0,59435.0,0.50476]
[1726241684310,0.001,59438.0,59437.0,0.44491]
[1726241684706,0.00572185,59446.0,59445.0,0.084098]
[1726241684910,0.00572185,59446.0,59445.0,0.444898]
[1726241685213,0.70088,59450.0,59445.0,1.46548]
[1726241685415,0.00088,59467.0,59449.0,0.3608]
[1726241685722,0.3608,59473.0,59461.0,0.3608]
[1726241685905,0.3608,59473.0,59468.0,0.3548]
[1726241686105,0.3608,59478.0,59468.0,0.3548]
[1726241686304,0.00648807,59483.0,59477.0,0.3608]
[1726241686504,0.00648807,59483.0,59482.0,0.3608]
[1726241686709,0.36086,59491.0,59482.0,0.3608]
[1726241687228,0.08403,59494.0,59490.0,0.3608]
[1726241687512,0.45,59511.0,59483.0,0.50432]
[1726241687513,0.3608,59524.0,59493.0,0.7216]
[1726241687815,0.3608,59524.0,59496.0,0.3608]
[1726241687816,0.45,59509.0,59496.0,0.3608]
[1726241688117,0.45,59515.0,59507.0,0.3608]
[1726241688315,0.45,59515.0,59496.0,0.3608]
[1726241688505,0.3608,59512.0,59502.0,0.3608]
[1726241688708,0.45,59515.0,59502.0,0.3608]
[1726241688906,0.3608,59518.0,59502.0,0.3608]
[1726241689322,0.084005,59512.0,59502.0,0.3608]
[1726241689506,0.084012,59507.0,59502.0,0.3608]
[1726241689706,0.084012,59507.0,59497.0,0.3608]
[1726241690116,0.3608,59506.0,59497.0,0.3608]
[1726241690307,0.3608,59508.0,59507.0,0.001]
[1726241690812,1.82572,59508.0,59490.0,0.3608]
[1726241691011,1.82572,59508.0,59497.0,0.011]
[1726241691012,0.45,59498.0,59497.0,0.011]
[1726241691212,0.39114096,59498.0,59497.0,0.011]
[1726241691413,0.084023,59498.0,59497.0,0.011]
[1726241691615,0.3608,59502.0,59483.0,0.3608]
[1726241691816,0.3608,59559.0,59516.0,0.3608]
[1726241692018,0.3608,59559.0,59550.0,0.3608]
[1726241692019,0.45,59551.0,59550.0,0.3608]
[1726241692316,0.45,59551.0,59509.0,0.00838406]
[1726241692317,0.45,59551.0,59513.0,0.3608]
[1726241692508,0.45,59519.0,59506.0,0.3608]
[1726241692706,0.08399,59522.0,59518.0,0.00156]
[1726241693009,0.083996,59518.0,59506.0,0.3608]
[1726241693210,0.8108,59519.0,59506.0,0.3608]
[1726241693406,0.45,59519.0,59511.0,0.3608]
[1726241693608,0.45,59519.0,59506.0,0.3608]
[1726241693609,0.084003,59513.0,59506.0,0.3608]
[1726241694013,0.084004,59512.0,59506.0,0.3608]
[1726241694222,0.084006,59510.0,59506.0,0.3608]
[1726241694409,0.084007,59510.0,59506.0,0.3608]
[1726241694606,0.084007,59510.0,59502.0,0.3608]
[1726241695215,0.45,59519.0,59506.0,0.014]
[1726241695216,0.084009,59509.0,59506.0,0.014]
[1726241695717,0.3608,59521.0,59508.0,0.3608]
[1726241696220,0.084001,59514.0,59513.0,0.3608]
[1726241696720,0.084001,59514.0,59506.0,0.027]
[1726241696721,0.084011,59507.0,59506.0,0.027]
[1726241697416,0.084011,59507.0,59506.0,0.013]
[1726241698012,0.3557,59525.0,59506.0,0.3738]
[1726241698013,0.084006,59511.0,59506.0,0.3738]
[1726241698212,0.084007,59510.0,59508.0,0.014]
[1726241698816,0.084011,59507.0,59506.0,0.3608]
[1726241699011,0.084011,59507.0,59506.0,0.008]
[1726241699612,0.070011,59507.0,59506.0,0.003]
[1726241700011,1.258182,59507.0,59506.0,0.003]
[1726241700323,0.154022,59507.0,59506.0,0.003]
[1726241700519,0.658182,59507.0,59506.0,0.003]
[1726241700815,0.070018,59502.0,59501.0,0.3608]
[1726241701406,0.060018,59502.0,59501.0,0.3608]
[1726241701721,0.059018,59502.0,59501.0,0.3608]
[1726241701908,0.001,59507.0,59501.0,0.3608]
[1726241702212,0.084011,59507.0,59506.0,0.3608]
[1726241702716,0.083992,59521.0,59506.0,0.3608]
[1726241702921,0.08401,59508.0,59506.0,0.3608]
[1726241703113,0.084011,59507.0,59506.0,0.3608]
[1726241704009,0.084004,59512.0,59506.0,0.3608]
[1726241704215,0.084004,59512.0,59511.0,0.3608]
[1726241704616,0.084003,59513.0,59511.0,1.46492]
[1726241704816,0.083999,59516.0,59511.0,0.3608]
[1726241705014,0.70578,59536.0,59511.0,0.3608]
[1726241705015,0.0053945,59536.0,59515.0,0.6308]
[1726241705216,0.00088,59536.0,59535.0,1.075571]
[1726241705523,0.27,59549.0,59535.0,0.7216]
[1726241705727,0.083962,59542.0,59535.0,0.3608]
[1726241706021,0.27,59549.0,59535.0,0.3608]
[1726241706022,0.083952,59549.0,59535.0,0.3608]
[1726241706220,0.45,59555.0,59540.0,0.3608]
[1726241706418,0.083948,59552.0,59540.0,0.3608]
[1726241706617,0.083948,59552.0,59551.0,0.3608]
[1726241706818,0.3608,59560.0,59551.0,0.3608]
[1726241707021,0.3608,59560.0,59540.0,0.45188]
[1726241707022,0.3608,59555.0,59545.0,0.3608]
[1726241707321,0.3608,59554.0,59545.0,0.3608]
[1726241707621,0.3608,59563.0,59545.0,0.3608]
[1726241707622,0.083926,59567.0,59550.0,0.3608]
[1726241708022,0.083926,59567.0,59545.0,0.3608]
[1726241708023,0.45,59565.0,59545.0,0.3608]
[1726241708227,0.45,59546.0,59537.0,0.3628]
[1726241708422,0.08397,59536.0,59535.0,0.018]
[1726241708827,1.18789,59536.0,59535.0,0.004]
[1726241709029,0.08398,59529.0,59523.0,0.3608]
[1726241709334,1.1716,59539.0,59518.0,0.36268]
[1726241709335,0.083983,59527.0,59518.0,0.36268]
[1726241709522,0.083983,59527.0,59518.0,0.3608]
[1726241709723,0.3588,59532.0,59518.0,0.3608]
[1726241710420,0.08397,59536.0,59531.0,0.3608]
[1726241710630,0.3608,59534.0,59517.0,0.36268]
[1726241710833,0.083994,59519.0,59517.0,0.3608]
[1726241711135,0.083997,59517.0,59516.0,0.3608]
[1726241711326,0.45,59529.0,59512.0,0.3608]
[1726241711544,0.45,59529.0,59517.0,0.3608]
[1726241711828,0.444793,59520.0,59518.0,0.011]
[1726241712048,0.50404,59519.0,59518.0,0.011]
[1726241712428,0.45,59523.0,59503.0,0.3608]
[1726241712624,0.45,59505.0,59493.0,0.07913214]
[1726241712837,0.45,59505.0,59494.0,0.3608]
[1726241713031,0.084021,59500.0,59494.0,0.3608]
[1726241713221,0.084012,59507.0,59499.0,0.3608]
[1726241713534,0.45,59508.0,59499.0,0.3608]
[1726241713931,0.084019,59501.0,59499.0,0.3608]
[1726241714333,0.3608,59518.0,59500.0,0.3608]
[1726241714539,0.084018,59502.0,59500.0,0.3608]
[1726241714929,0.5042,59501.0,59500.0,0.3608]
[1726241715129,0.5042,59501.0,59496.0,0.07913214]
[1726241715436,0.084025,59497.0,59495.0,0.07913214]
[1726241715734,0.084025,59497.0,59496.0,0.3608]
[1726241716235,0.08403,59493.0,59491.0,0.3608]
[1726241716533,1.038265,59497.0,59492.0,0.3608]
[1726241716730,0.001,59501.0,59492.0,0.88587915]
[1726241716922,0.084024,59498.0,59494.0,0.08024815]
[1726241717127,0.001,59497.0,59495.0,0.007]
[1726241717326,0.084026,59496.0,59495.0,0.007]
[1726241717530,0.588266,59496.0,59495.0,0.007]
[1726241717732,1.272292,59496.0,59495.0,0.007]
[1726241717931,0.084035,59490.0,59489.0,0.08024815]
[1726241718232,0.001,59497.0,59488.0,0.08024815]
[1726241718436,0.001,59497.0,59487.0,0.08024815]
[1726241718437,0.45,59493.0,59487.0,0.08024815]
[1726241718636,0.084039,59487.0,59486.0,0.3608]
[1726241718932,0.084043,59484.0,59480.0,0.08024815]
[1726241719131,0.084043,59484.0,59478.0,0.3608]
[1726241719132,0.08405,59479.0,59478.0,0.3608]
[1726241719332,0.08405,59479.0,59478.0,0.48890799]
[1726241719529,1.05385768,59479.0,59478.0,0.12810799]
[1726241719729,0.58845,59479.0,59478.0,0.12810799]
[1726241719932,1.18445,59479.0,59478.0,0.12810799]
[1726241720134,1.18445,59479.0,59478.0,0.20832992]
[1726241720347,0.084057,59474.0,59473.0,0.08022193]
[1726241720531,0.084057,59474.0,59472.0,0.08022193]
[1726241720532,0.084059,59473.0,59472.0,0.08022193]
[1726241720734,0.084059,59473.0,59470.0,0.08022193]
[1726241720950,0.45,59476.0,59471.0,0.20829505]
[1726241721147,0.084056,59475.0,59471.0,0.08017169]
[1726241721332,0.084065,59469.0,59465.0,0.08017169]
[1726241721642,0.001,59479.0,59465.0,0.08017169]
[1726241721846,0.084049,59480.0,59468.0,0.3608]
[1726241722028,0.45,59481.0,59465.0,0.13466273]
[1726241722029,0.003,59479.0,59465.0,0.21483442]
[1726241722234,0.45,59469.0,59464.0,0.08017169]
[1726241722531,0.084052,59478.0,59468.0,0.3608]
[1726241722738,0.001,59479.0,59474.0,0.3608]
[1726241723041,0.002,59479.0,59474.0,0.3608]
[1726241723231,0.084056,59475.0,59474.0,0.3608]
[1726241723433,0.084053,59477.0,59474.0,0.3608]
[1726241723635,0.084046,59483.0,59474.0,0.3608]
[1726241723832,0.084046,59483.0,59482.0,0.3608]
[1726241724043,0.084049,59480.0,59479.0,0.3608]
[1726241724433,0.084049,59480.0,59474.0,0.3608]
[1726241724434,0.084056,59476.0,59474.0,0.3608]
[1726241725047,0.00823767,59486.0,59478.0,0.08405]
[1726241725244,0.084039,59487.0,59478.0,0.08405]
[1726241725435,0.36941368,59496.0,59479.0,0.3608]
[1726241725631,0.084044,59484.0,59479.0,0.3608]
[1726241725836,0.084049,59480.0,59479.0,0.3608]
[1726241726740,1.188409,59480.0,59479.0,0.3608]
[1726241726945,0.08405,59479.0,59478.0,0.001]
[1726241727246,0.58841,59479.0,59478.0,0.001]
[1726241727434,1.18841,59479.0,59478.0,0.001]
[1726241728445,1.10436,59479.0,59468.0,0.3608]
[1726241728641,0.37187736,59480.0,59468.0,0.3608]
[1726241728642,0.084064,59469.0,59468.0,0.3608]
[1726241728838,0.37887736,59480.0,59468.0,0.3608]
[1726241729041,0.01807736,59480.0,59468.0,0.3608]
[1726241729246,0.45,59475.0,59468.0,0.3608]
[1726241729543,0.084052,59478.0,59474.0,0.3608]
[1726241729745,0.004,59479.0,59477.0,0.3608]
[1726241730042,0.004,59479.0,59474.0,0.36268]
[1726241730043,0.088051,59479.0,59474.0,0.36268]
[1726241730243,0.001,59480.0,59474.0,0.3608]
[1726241730446,0.08405,59479.0,59474.0,0.3608]
[1726241730645,0.001,59480.0,59474.0,0.3608]
[1726241730833,0.534056,59475.0,59474.0,0.3608]
[1726241731240,1.638456,59475.0,59474.0,0.3608]
[1726241731643,1.638456,59475.0,59468.0,0.002]
[1726241731845,0.45,59475.0,59468.0,0.002]
[1726241732043,0.39952209,59475.0,59468.0,0.002]
[1726241732438,0.084051,59479.0,59474.0,0.3608]
[1726241732644,0.002,59480.0,59478.0,0.3608]
[1726241732944,0.084056,59475.0,59474.0,0.3608]
[1726241733150,0.001,59475.0,59474.0,0.3608]
[1726241733337,0.085056,59475.0,59474.0,0.3608]
[1726241733534,0.084056,59475.0,59474.0,0.3608]
[1726241734140,1.722512,59475.0,59474.0,0.3608]
[1726241734342,1.639456,59475.0,59474.0,0.3608]
[1726241734549,1.640456,59475.0,59474.0,0.3608]
[1726241734749,0.086056,59475.0,59474.0,0.3608]
[1726241735048,0.086056,59475.0,59474.0,0.444857]
[1726241735049,0.002,59475.0,59474.0,0.444857]
[1726241735450,0.5064,59475.0,59474.0,0.444857]
[1726241735745,0.5064,59475.0,59474.0,0.57951973]
[1726241735746,0.002,59475.0,59474.0,0.57951973]
[1726241736441,0.45,59497.0,59474.0,0.94546273]
[1726241736642,0.45,59497.0,59491.0,0.084032]
[1726241736844,0.0085549,59496.0,59490.0,0.3608]
[1726241737043,0.0085549,59496.0,59495.0,0.444828]
[1726241737247,0.00517672,59509.0,59495.0,0.3608]
[1726241737453,0.45,59521.0,59506.0,0.3608]
[1726241737743,0.084004,59512.0,59511.0,0.3608]
[1726241737943,0.45,59521.0,59515.0,0.083999]
[1726241738151,0.45,59521.0,59511.0,0.3608]
[1726241738152,0.083992,59520.0,59511.0,0.3608]
[1726241738338,0.45,59512.0,59504.0,0.3608]
[1726241738536,0.45,59512.0,59506.0,0.001]
[1726241738740,0.45,59512.0,59511.0,0.3608]
[1726241738741,0.084004,59512.0,59511.0,0.3608]
[1726241739049,0.012,59521.0,59511.0,0.3608]
[1726241739237,0.012,59521.0,59520.0,0.3608]
[1726241739545,0.012,59521.0,59506.0,0.001]
[1726241739546,1.47684,59521.0,59506.0,0.001]
[1726241739756,0.548004,59512.0,59511.0,0.001]
[1726241739944,0.548004,59512.0,59506.0,0.001]
[1726241739945,0.084011,59507.0,59506.0,0.001]
[1726241740144,0.084011,59507.0,59493.0,0.3608]
[1726241740145,0.50412,59511.0,59493.0,0.3608]
[1726241740342,0.45,59494.0,59493.0,0.49546273]
[1726241740846,0.45,59494.0,59493.0,0.3608]
[1726241740847,0.95424,59494.0,59493.0,0.3608]
[1726241741045,0.084042,59485.0,59484.0,0.3608]
[1726241741249,0.45,59490.0,59484.0,0.49546273]
[1726241741451,0.084034,59491.0,59489.0,0.3608]
[1726241742146,0.534035,59490.0,59489.0,0.3608]
[1726241742453,0.084042,59485.0,59484.0,0.3608]
[1726241742955,0.523042,59485.0,59484.0,0.3608]
[1726241743151,0.523042,59485.0,59476.0,0.3608]
[1726241743343,0.0086057,59496.0,59481.0,0.3608]
[1726241743538,0.45,59489.0,59481.0,0.3608]
[1726241743749,0.534046,59482.0,59481.0,0.49546273]
[1726241744056,0.534046,59482.0,59481.0,0.3608]
[1726241744057,0.531046,59482.0,59481.0,0.3608]
[1726241744360,1.035406,59482.0,59481.0,0.3608]
[1726241744543,0.531046,59482.0,59481.0,0.3638]
[1726241744746,1.635406,59482.0,59481.0,0.3698]
[1726241745446,0.531046,59482.0,59481.0,0.3698]
[1726241745843,1.635406,59482.0,59481.0,0.009]
[1726241746249,1.635406,59482.0,59481.0,0.003]
[1726241746250,1.720452,59482.0,59481.0,0.003]
[1726241746453,1.636406,59482.0,59468.0,0.3608]
[1726241746754,0.082064,59469.0,59468.0,0.3608]
[1726241746948,0.082064,59469.0,59468.0,0.49546273]
[1726241747141,0.082064,59469.0,59468.0,0.3608]
[1726241747655,0.45,59476.0,59468.0,0.3608]
[1726241747854,0.45,59476.0,59468.0,0.50946273]
[1726241748045,0.084064,59469.0,59468.0,0.3748]
[1726241749055,0.168128,59469.0,59468.0,0.014]
[1726241749248,0.085064,59469.0,59468.0,0.014]
[1726241750053,0.169128,59469.0,59468.0,0.014]
[1726241750250,0.169128,59469.0,59468.0,0.3748]
[1726241750251,0.001,59469.0,59468.0,0.3748]
[1726241750641,0.001,59469.0,59468.0,0.59352873]
[1726241750845,0.001,59469.0,59468.0,0.50946273]
[1726241751250,0.16718986,59469.0,59468.0,0.50946273]
[1726241751453,0.16718986,59469.0,59468.0,0.3748]
[1726241751953,0.00520249,59481.0,59468.0,0.50946273]
[1726241751954,0.45,59481.0,59468.0,0.50946273]
[1726241752150,0.084054,59476.0,59475.0,0.3608]
[1726241752356,0.084064,59469.0,59468.0,0.51134273]
[1726241752549,0.084064,59469.0,59468.0,0.50946273]
[1726241753145,0.168128,59469.0,59468.0,0.3748]
[1726241753345,0.168128,59469.0,59468.0,0.50946273]
[1726241753346,0.03359031,59469.0,59468.0,0.50946273]
[1726241753542,0.084064,59469.0,59468.0,0.50946273]
[1726241754157,0.084064,59469.0,59468.0,0.59352873]
[1726241754158,0.085064,59469.0,59468.0,0.59352873]
[1726241754350,0.084042,59485.0,59477.0,0.084052]
[1726241754351,0.084052,59478.0,59477.0,0.084052]
[1726241754556,0.084052,59478.0,59477.0,0.3608]
[1726241754757,0.084052,59478.0,59477.0,0.57951573]
[1726241754961,0.084033,59491.0,59477.0,0.76546273]
[1726241755259,0.084033,59491.0,59490.0,0.3608]
[1726241755453,0.084033,59491.0,59490.0,0.49546273]
[1726241755646,0.27531082,59503.0,59490.0,0.49546273]
[1726241755849,0.084033,59491.0,59490.0,0.49546273]
[1726241756042,0.084033,59491.0,59490.0,0.85626273]
[1726241756248,0.084033,59491.0,59490.0,0.94029773]
[1726241756449,0.084033,59491.0,59490.0,0.85626273]
[1726241756647,0.168066,59491.0,59490.0,0.85626273]
[1726241756959,0.168066,59491.0,59490.0,0.7216]
[1726241757257,0.172066,59491.0,59490.0,0.7216]
[1726241757459,0.088033,59491.0,59490.0,0.7216]
[1726241757955,0.088033,59491.0,59490.0,0.94029773]
[1726241758149,0.088033,59491.0,59490.0,0.85626273]
[1726241758960,0.172066,59491.0,59490.0,0.85626273]
[1726241759259,0.088033,59491.0,59490.0,0.85626273]
[1726241759858,0.172066,59491.0,59490.0,0.7216]
[1726241760955,0.172066,59491.0,59490.0,0.3608]
[1726241761354,0.08404,59486.0,59485.0,0.3608]
[1726241761550,0.084047,59481.0,59480.0,0.3608]
[1726241761757,0.534047,59481.0,59480.0,0.3608]
[1726241761956,0.084047,59481.0,59480.0,0.3608]
[1726241762154,0.168094,59481.0,59480.0,0.3608]
[1726241762353,0.618094,59481.0,59480.0,0.3608]
[1726241762757,0.534047,59481.0,59480.0,0.3608]
[1726241763063,0.535047,59481.0,59480.0,0.3608]
[1726241764360,0.001,59481.0,59480.0,0.49546273]
[1726241764951,0.001,59481.0,59480.0,0.58251173]
[1726241765170,0.45,59503.0,59480.0,2.05282273]
[1726241765369,0.084023,59498.0,59497.0,0.3608]
[1726241765559,0.82456001,59509.0,59497.0,0.3608]
[1726241765560,0.00528996,59504.0,59497.0,0.3608]
[1726241765755,0.084014,59505.0,59503.0,0.444816]
[1726241765956,0.084015,59504.0,59503.0,0.3608]
[1726241766160,0.084009,59508.0,59503.0,0.49546273]
[1726241766363,0.45,59520.0,59504.0,0.3608]
[1726241766364,0.084013,59505.0,59504.0,0.3608]
[1726241766857,0.00517872,59520.0,59503.0,0.00188]
[1726241766858,0.084015,59504.0,59503.0,0.00188]
[1726241767055,0.61803,59504.0,59503.0,0.13466273]
[1726241767262,0.168042,59500.0,59499.0,0.3608]
[1726241767566,0.084021,59500.0,59499.0,0.3608]
[1726241767754,0.084021,59500.0,59499.0,0.49546273]
[1726241768362,0.084021,59500.0,59499.0,0.3608]
[1726241768661,0.084021,59500.0,59499.0,0.3618]
[1726241769272,0.168042,59500.0,59499.0,0.3618]
[1726241769455,0.084021,59500.0,59499.0,0.3618]
[1726241769655,0.168042,59500.0,59499.0,0.3618]
[1726241769862,0.176042,59500.0,59499.0,0.3618]
[1726241770059,0.092021,59500.0,59499.0,0.3618]
[1726241770364,0.176042,59500.0,59499.0,0.3618]
[1726241770667,0.084036,59489.0,59488.0,0.3608]
[1726241770869,0.084022,59499.0,59482.0,0.3608]
[1726241770870,0.00839034,59491.0,59482.0,0.3608]
[1726241771058,0.534029,59494.0,59482.0,0.49546273]
[1726241771059,0.084045,59483.0,59482.0,0.49546273]
[1726241771870,0.084045,59483.0,59482.0,0.3608]
[1726241772173,0.083045,59483.0,59482.0,0.3608]
[1726241772470,0.084039,59487.0,59482.0,0.49546273]
[1726241772659,0.084042,59485.0,59484.0,0.3608]
[1726241773059,0.08404,59486.0,59484.0,0.49546273]
[1726241773259,0.084035,59490.0,59484.0,0.49546273]
[1726241773573,0.084035,59490.0,59489.0,0.3608]
[1726241773960,0.084035,59490.0,59489.0,0.49546273]
[1726241774166,0.16807,59490.0,59489.0,0.3608]
[1726241774370,0.084035,59490.0,59489.0,0.3608]
[1726241774571,0.00511924,59495.0,59489.0,0.49546273]
[1726241774762,0.084,59515.0,59494.0,0.3608]
[1726241774960,0.084,59515.0,59514.0,0.3608]
[1726241774961,0.167998,59515.0,59514.0,0.3608]
[1726241775175,0.851997,59515.0,59514.0,0.3608]
[1726241775475,0.084009,59508.0,59507.0,0.3608]
[1726241775668,0.168018,59508.0,59507.0,0.3608]
[1726241776267,0.168018,59508.0,59501.0,0.3608]
[1726241776268,0.168036,59502.0,59501.0,0.3608]
[1726241776570,0.534018,59502.0,59501.0,0.3608]
[1726241777573,0.534018,59502.0,59483.0,0.4383]
[1726241777574,0.084035,59490.0,59481.0,0.444847]
[1726241777773,0.00830088,59494.0,59486.0,0.3608]
[1726241778080,0.084037,59489.0,59486.0,0.49546273]
[1726241778277,0.09232988,59494.0,59486.0,0.49546273]
[1726241778572,0.00830088,59494.0,59486.0,0.49546273]
[1726241778766,0.81168,59495.0,59486.0,0.49546273]
[1726241778967,0.81168,59495.0,59481.0,0.009]
[1726241778968,0.084043,59485.0,59481.0,0.3698]
[1726241779178,0.084044,59484.0,59481.0,0.50446273]
[1726241779368,0.084032,59493.0,59481.0,0.50446273]
[1726241779668,0.00829836,59494.0,59489.0,0.3608]
[1726241779870,0.45,59499.0,59489.0,0.49546273]
[1726241780282,0.084035,59490.0,59489.0,0.49546273]
[1726241780576,0.084035,59490.0,59489.0,0.3608]
[1726241780762,0.084035,59490.0,59489.0,0.49546273]
[1726241780969,0.084035,59490.0,59489.0,0.3608]
[1726241781163,0.084046,59482.0,59481.0,0.003]
[1726241781483,0.084046,59482.0,59481.0,0.14666273]
[1726241781665,0.084039,59487.0,59481.0,0.14666273]
[1726241781862,0.001,59493.0,59487.0,0.084038]
[1726241782066,0.084033,59491.0,59490.0,0.3608]
[1726241782466,0.08404,59486.0,59485.0,0.36268]
[1726241782666,0.16808,59486.0,59485.0,0.49546273]
[1726241782871,0.08404,59486.0,59485.0,0.49546273]
[1726241783077,0.08304,59486.0,59485.0,0.49546273]
[1726241783578,0.08304,59486.0,59485.0,0.49646273]
[1726241783772,0.25112,59486.0,59485.0,0.001]
[1726241784070,0.6714,59486.0,59485.0,0.001]
[1726241784282,0.167092,59482.0,59481.0,0.003]
[1726241784470,0.084059,59473.0,59472.0,0.3608]
[1726241784665,0.084059,59473.0,59472.0,0.49546273]
[1726241784866,0.083059,59473.0,59472.0,0.49546273]
[1726241786272,0.083059,59473.0,59472.0,0.50746273]
[1726241786573,0.167118,59473.0,59472.0,0.50746273]
[1726241786976,0.084047,59482.0,59472.0,0.87241573]
[1726241787174,0.084046,59482.0,59481.0,0.3608]
[1726241787675,0.084046,59482.0,59481.0,0.41041573]
[1726241787893,0.084046,59482.0,59481.0,0.3608]
[1726241788174,0.084046,59483.0,59480.0,0.3608]
[1726241788376,0.534047,59481.0,59480.0,0.3608]
[1726241788677,0.618094,59481.0,59480.0,0.3608]
[1726241788868,0.702141,59481.0,59480.0,0.3608]
[1726241789280,0.702141,59481.0,59472.0,0.45686]
[1726241789281,0.084059,59473.0,59472.0,0.45686]
[1726241789578,0.084059,59473.0,59472.0,0.42241573]
[1726241790075,0.615118,59473.0,59472.0,0.3608]
[1726241790470,0.084071,59464.0,59463.0,0.04825581]
[1726241790668,0.084067,59467.0,59466.0,0.084069]
[1726241791175,0.084067,59467.0,59466.0,0.04961573]
[1726241792279,0.168134,59467.0,59466.0,0.04961573]
[1726241792474,0.157134,59467.0,59466.0,0.04961573]
[1726241792871,0.073067,59467.0,59466.0,0.13368473]
[1726241793074,0.00751488,59473.0,59472.0,0.08406]
[1726241793273,0.084055,59477.0,59476.0,0.084054]
[1726241793572,0.00088,59485.0,59476.0,0.04961573]
[1726241793776,0.8035,59495.0,59476.0,0.04961573]
[1726241793777,0.084036,59490.0,59481.0,0.444847]
[1726241793981,0.084046,59483.0,59482.0,0.084046]
[1726241794284,0.084046,59482.0,59481.0,0.41041573]
[1726241795182,0.168092,59482.0,59481.0,0.3608]
[1726241795394,0.534042,59486.0,59473.0,0.3608]
[1726241795395,0.084057,59474.0,59473.0,0.3608]
[1726241795583,0.084057,59474.0,59473.0,0.41041573]
[1726241796478,0.168114,59474.0,59473.0,0.41041573]
[1726241796680,0.168114,59474.0,59468.0,0.3608]
[1726241796681,0.084064,59469.0,59468.0,0.3608]
[1726241796881,0.168128,59469.0,59468.0,0.41041573]
[1726241797179,0.168128,59469.0,59468.0,0.3608]
[1726241797373,0.44465388,59469.0,59468.0,0.3608]
[1726241797781,0.35458988,59469.0,59468.0,0.3608]
[1726241798185,0.16965388,59469.0,59468.0,0.3608]
[1726241798570,0.43965388,59469.0,59468.0,0.3608]
[1726241798775,0.08658988,59469.0,59468.0,0.3678]
[1726241798986,0.350064,59469.0,59468.0,0.3678]
[1726241799377,0.434128,59469.0,59468.0,0.007]
[1726241799784,0.350064,59469.0,59468.0,0.007]
[1726241799976,0.080064,59469.0,59468.0,0.007]
[1726241800379,0.002,59469.0,59468.0,0.41741573]
[1726241800584,0.086064,59469.0,59468.0,0.50148173]
[1726241800787,0.46608,59488.0,59468.0,0.77148173]
[1726241800980,0.0063897,59488.0,59487.0,0.3608]
[1726241801178,0.084046,59482.0,59481.0,0.3608]
[1726241801487,0.084045,59484.0,59483.0,0.084044]
[1726241801678,0.084046,59482.0,59481.0,0.77121573]
[1726241802390,0.085046,59482.0,59481.0,0.77221573]
[1726241802788,0.169092,59482.0,59481.0,0.7226]
[1726241803776,0.169092,59482.0,59481.0,0.001]
[1726241804292,0.09142531,59482.0,59481.0,0.41141573]
[1726241804474,0.001,59488.0,59481.0,1.59982273]
[1726241804679,0.001,59488.0,59487.0,0.444839]
[1726241804979,0.084003,59513.0,59487.0,0.444839]
[1726241804980,0.084006,59511.0,59487.0,0.6308]
[1726241805178,0.354009,59508.0,59507.0,0.3608]
[1726241805578,0.354009,59508.0,59507.0,0.41041573]
[1726241805579,0.084009,59508.0,59507.0,0.41041573]
[1726241806286,0.084005,59511.0,59507.0,0.77121573]
[1726241806583,1.55848427,59515.0,59514.0,0.084001]
[1726241806775,1.55760427,59515.0,59514.0,0.444801]
[1726241806974,1.55760427,59515.0,59514.0,1.548881]
[1726241807194,1.10428217,59515.0,59514.0,1.548881]
[1726241807494,0.083979,59530.0,59519.0,0.083994]
[1726241807785,0.083978,59530.0,59529.0,0.3608]
[1726241809090,0.083978,59530.0,59529.0,0.3618]
[1726241809091,0.012,59530.0,59529.0,0.3618]
[1726241809884,0.023,59530.0,59529.0,0.3628]
[1726241810400,0.023,59530.0,59529.0,1.55074]
[1726241810776,0.023,59530.0,59529.0,0.95074]
[1726241811176,0.45,59542.0,59529.0,0.3628]
[1726241811177,0.083963,59541.0,59529.0,0.3628]
[1726241811383,0.444729,59565.0,59540.0,0.7216]
[1726241811384,0.45,59547.0,59540.0,0.7216]
[1726241811582,0.70254501,59575.0,59540.0,0.7216]
[1726241811583,0.083954,59548.0,59546.0,0.3608]
[1726241811977,0.45,59547.0,59546.0,0.3608]
[1726241812487,0.464,59547.0,59546.0,0.3608]
[1726241812690,0.014,59547.0,59546.0,0.3608]
[1726241813582,0.025,59547.0,59546.0,0.3618]
[1726241814185,0.083963,59541.0,59540.0,0.001]
[1726241814388,0.894763,59541.0,59519.0,0.3608]
[1726241814588,0.3608,59541.0,59524.0,0.083987]
[1726241814790,0.45,59533.0,59524.0,0.083987]
[1726241815197,0.083977,59531.0,59524.0,0.444787]
[1726241815586,0.45,59533.0,59524.0,0.3608]
[1726241815881,0.45,59533.0,59519.0,0.3608]